bitfinex/quotes_ETHUSD_20250630
["timestamp","ask_amount","ask_price","bid_price","bid_amount"]
[1751249825596,8.092,2509.5,2509.4,0.001]
[1751249826623,11.27988603,2509.5,2509.4,0.001]
[1751249826930,8.092,2509.5,2509.4,0.001]
[1751249829203,13.18781656,2509.6,2509.4,0.001]
[1751249829537,8.092,2509.5,2509.4,0.001]
[1751249830613,3.18773676,2509.7,2509.4,0.001]
[1751249830942,10.0,2509.6,2509.4,0.001]
[1751249831298,8.092,2509.5,2509.4,0.001]
[1751249834841,1.651,2509.5,2509.4,0.001]
[1751249835014,0.001,2509.8,2509.4,3.18898985]
[1751249835223,1.651,2509.7,2509.6,3.187759]
[1751249835415,8.092,2509.7,2509.6,3.944559]
[1751249835753,8.092,2509.7,2509.6,0.7568]
[1751249836036,14.16986756,2509.7,2509.4,0.001]
[1751249836204,0.1992,2509.5,2509.4,0.001]
[1751249836409,6.6402,2509.5,2509.4,0.001]
[1751249840428,9.82808603,2509.5,2509.4,0.001]
[1751249840640,11.98253789,2509.5,2509.4,0.001]
[1751249840927,18.06040545,2509.5,2509.4,0.001]
[1751249845123,28.06040545,2509.5,2509.4,0.001]
[1751249845331,29.37640545,2509.5,2509.4,0.001]
[1751249845740,30.33124055,2509.5,2509.4,0.001]
[1751249845941,31.98124055,2509.5,2509.4,0.001]
[1751249847259,31.02640545,2509.5,2509.4,0.001]
[1751249848558,61.98134925,2509.5,2509.4,0.001]
[1751249849560,31.98134925,2509.5,2509.4,0.001]
[1751249851163,25.54034925,2509.5,2509.4,0.001]
[1751249851349,31.98134925,2509.5,2509.4,0.001]
[1751249853875,31.43134925,2509.5,2509.4,0.001]
[1751249858837,31.98134925,2509.5,2509.4,0.001]
[1751249859237,61.98134925,2509.5,2509.4,0.001]
[1751249863295,31.98134925,2509.5,2509.4,0.001]
[1751249867002,23.89034925,2509.5,2509.4,0.001]
[1751249867159,23.34034925,2509.5,2509.4,0.001]
[1751249867467,30.66534925,2509.5,2509.4,0.001]
[1751249870157,22.57434925,2509.5,2509.4,0.001]
[1751249870384,30.66534925,2509.5,2509.4,0.001]
[1751249872305,31.85902901,2509.5,2509.4,0.001]
[1751249873260,23.76802901,2509.5,2509.4,0.001]
[1751249873604,31.85902901,2509.5,2509.4,0.001]
[1751249873960,23.26357715,2509.5,2509.4,0.001]
[1751249874206,28.51089739,2509.5,2509.4,0.001]
[1751249882192,2.8041438,2509.5,2509.4,0.7736]
[1751249882520,8.2902,2509.5,2509.4,0.7736]
[1751249883309,1.65,2509.6,2509.4,0.71629084]
[1751249883515,0.1992,2509.6,2509.4,0.001]
[1751249883682,6.44,2509.5,2509.4,0.001]
[1751249884017,6.44,2509.5,2509.4,0.8079]
[1751249884781,9.62788603,2509.5,2509.4,0.8079]
[1751249885420,10.001,2509.8,2509.4,0.8079]
[1751249885581,0.1992,2509.5,2509.4,0.8079]
[1751249885782,6.6392,2509.5,2509.4,1.52662129]
[1751249885978,0.1992,2509.5,2509.4,4.71463436]
[1751249886217,6.44,2509.5,2509.4,4.71463436]
[1751249886414,1.8492,2509.7,2509.5,3.95937512]
[1751249886621,6.44,2509.6,2509.5,3.95937512]
[1751249886919,1.8492,2509.7,2509.6,0.7715]
[1751249887085,8.2892,2509.7,2509.6,0.7715]
[1751249887924,0.1992,2509.7,2509.6,3.959259]
[1751249888079,0.001,2509.8,2509.7,3.94523198]
[1751249888418,6.441,2509.8,2509.7,3.94523198]
[1751249888622,6.441,2509.8,2509.7,4.75713265]
[1751249889615,6.441,2509.8,2509.7,15.50633265]
[1751249889616,6.44,2509.8,2509.7,15.50633265]
[1751249891584,0.001,2509.8,2509.7,15.50633265]
[1751249892698,0.001,2510.3,2510.2,3.18699705]
[1751249892881,0.001,2510.3,2510.2,14.26049676]
[1751249893089,0.001,2510.3,2510.2,15.00889676]
[1751249893306,0.001,2510.3,2510.2,15.39281085]
[1751249893709,0.001,2510.3,2510.2,15.59402216]
[1751249893924,0.001,2510.3,2510.2,15.39281085]
[1751249895490,0.001,2510.3,2510.2,19.55982385]
[1751249897198,0.001,2510.6,2510.5,4.53141621]
[1751249897407,0.001,2510.6,2510.5,12.69978496]
[1751249898000,0.001,2510.6,2510.5,12.9997969]
[1751249899896,0.001,2510.6,2510.5,28.0778169]
[1751249900095,0.001,2510.6,2510.5,17.7597969]
[1751249900496,0.001,2510.6,2510.5,33.9923379]
[1751249900830,0.001,2510.6,2510.5,26.9678499]
[1751249901030,0.001,2510.9,2510.8,14.48803546]
[1751249901322,0.001,2510.9,2510.8,17.25547342]
[1751249901490,0.001,2510.9,2510.8,17.63829585]
[1751249907330,0.001,2510.9,2510.8,17.08829585]
[1751249910099,0.001,2510.9,2510.8,16.33649585]
[1751249910443,0.001,2510.9,2510.8,3.56905789]
[1751249910732,0.001,2510.9,2510.8,0.38282243]
[1751249914737,3.18710856,2510.9,2510.8,0.38282243]
[1751249915420,0.001,2510.9,2510.8,0.38282243]
[1751249921731,3.18710856,2510.9,2510.8,0.38282243]
[1751249921950,0.001,2510.9,2510.8,0.38282243]
[1751249923125,3.18710856,2510.9,2510.8,0.38282243]
[1751249923326,3.824611,2510.9,2510.8,0.38282243]
[1751249924357,4.644111,2510.9,2510.8,0.38282243]
[1751249925353,6.292111,2510.9,2510.8,0.38282243]
[1751249925535,3.18647614,2510.7,2510.2,3.18692799]
[1751249925730,10.43409704,2510.6,2510.2,3.18692799]
[1751249926952,10.43409704,2510.6,2510.1,4.02235565]
[1751249927156,10.43409704,2510.6,2510.1,3.18905565]
[1751249928061,7.2476,2510.6,2510.2,3.1869735]
[1751249928528,10.43410054,2510.6,2510.2,3.1869735]
[1751249928728,10.43410054,2510.6,2510.1,0.002]
[1751249928729,10.43410054,2510.6,2510.1,3.18905204]
[1751249929047,7.2476,2510.6,2510.2,3.18699395]
[1751249932266,16.51203966,2510.6,2510.1,1.19811494]
[1751249932561,3.18674914,2510.4,2510.1,0.002]
[1751249932963,0.792,2510.3,2510.1,0.002]
[1751249933146,6.435,2510.2,2510.1,0.002]
[1751249935775,6.435,2510.2,2510.1,3.18912401]
[1751249935977,6.435,2510.2,2510.1,3.82676897]
[1751249936544,0.792,2510.6,2510.3,3.18677575]
[1751249936884,6.435,2510.5,2510.4,3.18672038]
[1751249937246,6.435,2510.5,2510.3,3.18681084]
[1751249938272,6.435,2510.5,2510.4,3.18674314]
[1751249938471,0.7523,2510.8,2510.4,3.18674314]
[1751249938771,6.435,2510.5,2510.4,3.18674314]
[1751249939251,6.435,2510.5,2510.3,3.18680329]
[1751249940255,6.435,2510.5,2510.4,3.18674314]
[1751249940983,1.648,2510.7,2510.3,0.70134243]
[1751249941194,1.648,2510.7,2510.5,3.18660629]
[1751249941355,6.435,2510.6,2510.5,3.18660629]
[1751249943791,6.435,2510.6,2510.4,3.18668976]
[1751249944284,9.6215514,2510.6,2510.1,3.18905116]
[1751249944500,6.435,2510.6,2510.2,3.1869898]
[1751249944693,3.18664707,2510.5,2510.1,0.002]
[1751249945494,0.8206,2510.4,2510.1,0.002]
[1751249945791,4.00736723,2510.4,2510.1,0.002]
[1751249945970,0.8206,2510.4,2510.1,0.002]
[1751249946861,0.8206,2510.4,2510.1,3.18908661]
[1751249947990,0.8206,2510.4,2510.1,0.002]
[1751249949993,0.8206,2510.4,2510.1,3.18911914]
[1751249950296,0.8206,2510.4,2510.2,3.1869949]
[1751249954107,0.8206,2510.4,2510.1,0.002]
[1751249954281,0.8206,2510.4,2510.2,3.18697922]
[1751249954605,7.2216,2510.6,2510.2,3.18699705]
[1751249957412,10.40809574,2510.6,2510.2,3.18699705]
[1751249957710,3.97309574,2510.6,2510.2,3.18699705]
[1751249957891,6.435,2510.5,2510.2,3.18699705]
[1751249959413,6.435,2510.5,2510.1,3.18905935]
[1751249960209,6.435,2510.5,2510.2,3.18698295]
[1751249961018,6.435,2510.5,2510.3,3.18684735]
[1751249961782,0.001,2510.6,2510.2,3.18699705]
[1751249961980,6.435,2510.5,2510.3,3.58194926]
[1751249962801,6.435,2510.5,2510.4,3.18674314]
[1751249962982,0.001,2510.6,2510.4,3.18674314]
[1751249963186,6.435,2510.5,2510.4,3.18674314]
[1751249963522,6.435,2510.5,2510.4,3.86361533]
[1751249964396,0.001,2510.6,2510.5,3.18661621]
[1751249964599,6.436,2510.6,2510.5,3.18661621]
[1751249967819,6.435,2510.6,2510.5,3.18661621]
[1751249971237,6.435,2510.6,2510.4,4.6935698]
[1751249971441,6.435,2510.6,2510.4,3.8635698]
[1751249972341,6.435,2510.6,2510.5,3.18661621]
[1751249974613,0.001,2510.6,2510.5,3.93115194]
[1751249974835,6.435,2510.6,2510.5,4.75695194]
[1751249975741,0.001,2510.6,2510.5,4.75695194]
[1751249975946,6.435,2510.6,2510.5,4.75695194]
[1751249976144,0.001,2510.6,2510.5,4.75695194]
[1751249982773,0.001,2510.6,2510.5,4.75895194]
[1751249987379,0.001,2510.6,2510.5,3.93315194]
[1751249989281,0.001,2510.6,2510.5,21.3747195]
[1751249991185,0.001,2510.6,2510.5,15.29685194]
[1751249991483,0.001,2510.6,2510.5,15.63824325]
[1751249991686,0.001,2510.6,2510.5,15.08824325]
[1751249992158,0.001,2510.6,2510.5,14.27454325]
[1751249997493,0.001,2510.6,2510.5,13.92460472]
[1751249999495,0.001,2510.6,2510.5,14.69670472]
[1751250000974,0.001,2510.6,2510.5,14.26168005]
[1751250001894,0.001,2510.6,2510.5,0.33907533]
[1751250002069,0.001,2510.6,2510.5,3.52569154]
[1751250002705,0.001,2510.6,2510.5,14.85299154]
[1751250004805,0.001,2510.6,2510.5,14.30299154]
[1751250011829,0.001,2510.6,2510.5,13.52569154]
[1751250013930,0.001,2510.6,2510.5,3.52569154]
[1751250016208,0.001,2510.6,2510.5,4.74948259]
[1751250017312,0.001,2510.6,2510.5,3.52569154]
[1751250018624,0.001,2510.6,2510.5,14.90479154]
[1751250018841,0.001,2510.6,2510.5,19.66479154]
[1751250019444,0.001,2510.6,2510.5,25.7426591]
[1751250019738,0.001,2510.6,2510.5,19.66479154]
[1751250019965,0.001,2510.6,2510.5,23.23143761]
[1751250024113,0.001,2510.6,2510.5,21.85233761]
[1751250024310,0.001,2510.6,2510.5,0.33907533]
[1751250024516,0.7591,2510.6,2510.5,3.52569154]
[1751250028648,0.7591,2510.6,2510.5,0.33907533]
[1751250029616,0.7591,2510.6,2510.5,3.52569154]
[1751250030525,7.1971,2510.6,2510.5,0.33907533]
[1751250030854,7.1971,2510.6,2510.5,3.52569154]
[1751250032571,7.1971,2510.6,2510.5,0.33907533]
[1751250033465,7.95791,2510.6,2510.5,0.33907533]
[1751250033880,1.51991,2510.6,2510.5,0.33907533]
[1751250034171,7.2372,2510.6,2510.5,3.52569154]
[1751250034570,7.2372,2510.6,2510.5,0.33907533]
[1751250036681,10.42368928,2510.6,2510.5,0.33907533]
[1751250046180,7.2372,2510.6,2510.5,0.33907533]
[1751250046374,10.42368928,2510.6,2510.5,0.33907533]
[1751250046579,12.55728593,2510.6,2510.5,0.33907533]
[1751250051708,12.55728593,2510.6,2510.5,0.002]
[1751250052905,9.37079665,2510.6,2510.5,0.002]
[1751250053106,12.55728593,2510.6,2510.5,0.002]
[1751250056991,9.37079665,2510.6,2510.5,0.002]
[1751250057577,12.55728593,2510.6,2510.5,0.002]
[1751250059106,9.37079665,2510.6,2510.5,0.002]
[1751250060377,12.55728593,2510.6,2510.5,0.002]
[1751250060768,2.93379665,2510.6,2510.5,0.002]
[1751250060990,11.01479665,2510.6,2510.5,0.002]
[1751250062924,24.20128593,2510.6,2510.5,0.002]
[1751250063215,25.15582664,2510.6,2510.5,0.002]
[1751250067287,24.7996942,2510.6,2510.5,0.002]
[1751250067517,31.2336942,2510.6,2510.5,0.002]
[1751250069633,30.27915349,2510.6,2510.5,0.002]
[1751250070127,31.23379512,2510.6,2510.5,0.002]
[1751250074124,13.15279512,2510.6,2510.5,0.002]
[1751250074325,21.23379512,2510.6,2510.5,0.002]
[1751250076805,14.79979512,2510.6,2510.5,0.002]
[1751250077006,31.23379512,2510.6,2510.5,0.002]
[1751250077214,31.78379512,2510.6,2510.5,0.002]
[1751250078227,31.78379512,2510.6,2510.1,0.002]
[1751250078228,3.18699705,2510.2,2510.1,0.002]
[1751250078430,27.01716461,2510.2,2510.1,0.002]
[1751250078631,57.97180624,2510.2,2510.1,0.002]
[1751250078832,34.50542401,2510.1,2510.0,0.002]
[1751250079032,4.54620498,2509.8,2509.7,0.33246862]
[1751250079239,29.47843278,2509.8,2509.7,0.33246862]
[1751250079414,3.18788603,2509.5,2509.3,0.001]
[1751250079614,16.50945359,2509.5,2509.3,0.001]
[1751250080014,27.05945359,2509.5,2509.3,0.001]
[1751250082568,27.3570183,2509.5,2509.3,0.001]
[1751250082789,28.76007659,2509.5,2509.3,0.001]
[1751250084957,3.73801307,2509.4,2509.3,0.001]
[1751250085157,44.52981307,2509.4,2509.3,0.001]
[1751250086285,13.73814011,2509.3,2509.1,0.002]
[1751250086487,13.73814011,2509.3,2508.4,0.2168398]
[1751250086488,3.73864841,2508.9,2508.4,0.2168398]
[1751250086778,22.62344841,2508.9,2508.4,0.2168398]
[1751250092375,14.53044841,2508.9,2508.4,0.2168398]
[1751250092586,22.63244841,2508.9,2508.4,0.2168398]
[1751250094403,13.98044841,2508.9,2508.4,0.2168398]
[1751250094602,22.85580865,2508.9,2508.4,0.2168398]
[1751250095004,23.40580865,2508.9,2508.4,0.2168398]
[1751250096490,15.30380865,2508.9,2508.4,0.2168398]
[1751250096804,23.40780865,2508.9,2508.4,0.2168398]
[1751250096991,15.30380865,2508.9,2508.4,0.2168398]
[1751250097168,23.40780865,2508.9,2508.4,0.2168398]
[1751250097364,23.40980865,2508.9,2508.4,0.2168398]
[1751250099399,14.75580865,2508.9,2508.4,0.2168398]
[1751250099704,22.85980865,2508.9,2508.4,0.9966398]
[1751250101806,22.85780865,2508.9,2508.4,0.9966398]
[1751250103796,14.75580865,2508.9,2508.4,0.9966398]
[1751250103990,21.69387621,2508.9,2508.4,0.9966398]
[1751250104318,28.14487621,2508.9,2508.4,0.9966398]
[1751250105325,20.04187621,2508.9,2508.4,0.9966398]
[1751250105616,11.29264841,2508.9,2508.4,4.18591519]
[1751250105909,21.29264841,2508.9,2508.4,4.18591519]
[1751250106328,18.104,2508.9,2508.5,3.1891556]
[1751250106512,18.105,2508.9,2508.5,3.1891556]
[1751250106715,18.105,2508.9,2508.7,0.7965]
[1751250106916,10.002,2508.9,2508.7,0.7965]
[1751250107115,18.105,2508.9,2508.7,0.7965]
[1751250108004,11.654,2508.9,2508.7,0.7965]
[1751250108206,18.105,2508.9,2508.7,0.7965]
[1751250108610,21.29364841,2508.9,2508.7,0.7965]
[1751250109639,18.105,2508.9,2508.7,0.7965]
[1751250112142,21.29364841,2508.9,2508.7,0.7965]
[1751250114855,11.654,2508.9,2508.7,0.7965]
[1751250115034,18.101,2508.9,2508.7,0.7965]
[1751250115341,21.28964841,2508.9,2508.5,0.7846]
[1751250115744,18.101,2508.9,2508.5,3.97375098]
[1751250116732,21.28964841,2508.9,2508.5,0.7846]
[1751250118230,21.28964841,2508.9,2508.4,0.2168398]
[1751250118231,30.3130345,2508.9,2508.4,0.2168398]
[1751250118646,22.2140345,2508.9,2508.4,0.2168398]
[1751250118844,13.19064841,2508.9,2508.5,0.7981]
[1751250119047,21.29664841,2508.9,2508.5,0.7981]
[1751250119941,0.002,2508.9,2508.5,0.7981]
[1751250120141,8.11,2508.9,2508.8,0.7966]
[1751250120468,11.30064841,2508.9,2508.8,0.001]
[1751250120641,13.70206162,2508.9,2508.8,0.001]
[1751250121041,0.95448735,2508.9,2508.8,0.001]
[1751250121264,8.111,2508.9,2508.8,0.001]
[1751250121467,9.06348735,2508.9,2508.8,0.001]
[1751250121652,8.111,2508.9,2508.8,0.001]
[1751250124371,1.655,2508.9,2508.8,0.001]
[1751250124687,8.11,2508.9,2508.8,0.001]
[1751250128949,8.11,2508.9,2508.6,0.812]
[1751250128950,8.11,2508.9,2508.6,0.763]
[1751250130247,6.451,2508.8,2508.6,3.95201048]
[1751250132088,6.451,2508.8,2508.6,0.763]
[1751250133902,6.451,2508.8,2508.6,3.95195075]
[1751250134604,1.655,2508.9,2508.6,3.95195075]
[1751250134605,0.002,2508.9,2508.8,0.7566]
[1751250134903,0.002,2508.9,2508.8,3.94537551]
[1751250135106,6.45,2508.9,2508.8,3.94537551]
[1751250135270,6.451,2508.9,2508.8,3.94537551]
[1751250135471,0.002,2508.9,2508.8,3.94537551]
[1751250135687,6.45,2508.9,2508.8,3.94537551]
[1751250136384,6.45,2508.9,2508.8,0.7566]
[1751250137120,6.45,2508.9,2508.5,0.8072]
[1751250137317,3.18915686,2508.5,2508.4,0.2168398]
[1751250137615,17.37002442,2508.5,2508.4,0.2168398]
[1751250142515,17.37002442,2508.5,2508.4,0.2178398]
[1751250142714,19.50156213,2508.5,2508.4,0.2178398]
[1751250147558,30.81636213,2508.5,2508.4,0.2178398]
[1751250148152,31.76621891,2508.5,2508.4,0.2178398]
[1751250157751,61.76621891,2508.5,2508.4,0.2178398]
[1751250158743,32.95326212,2508.5,2508.4,0.2178398]
[1751250158946,31.76621891,2508.5,2508.4,0.2178398]
[1751250159136,61.76621891,2508.5,2508.4,0.2178398]
[1751250160825,31.21321891,2508.5,2508.4,0.2178398]
[1751250161461,24.37055135,2508.5,2508.4,0.2178398]
[1751250161660,30.44841891,2508.5,2508.4,0.2178398]
[1751250162166,9.05285678,2508.5,2508.4,0.2178398]
[1751250162326,11.29215686,2508.5,2508.4,0.2178398]
[1751250162527,10.0,2508.6,2508.4,0.2178398]
[1751250162732,8.103,2508.5,2508.4,4.2125238]
[1751250163736,1.655,2508.5,2508.4,1.0232398]
[1751250163928,8.105,2508.5,2508.4,4.2125238]
[1751250164749,10.0,2508.8,2508.4,4.2125238]
[1751250165068,8.104,2508.7,2508.4,4.2125238]
[1751250165359,6.449,2508.6,2508.5,3.18915686]
[1751250166235,6.449,2508.6,2508.4,4.21246409]
[1751250168169,6.449,2508.6,2508.5,3.18915686]
[1751250168610,1.655,2508.7,2508.4,4.21250412]
[1751250168775,6.448,2508.6,2508.5,3.18905544]
[1751250169562,6.448,2508.6,2508.4,4.2124866]
[1751250169758,6.448,2508.6,2508.4,1.0232398]
[1751250169996,7.2583,2508.6,2508.4,1.0232398]
[1751250170389,9.26702442,2508.5,2508.4,0.2178398]
[1751250170578,6.07786756,2508.5,2508.4,0.2178398]
[1751250170769,9.26702442,2508.5,2508.4,0.2178398]
[1751250172871,6.07786756,2508.5,2508.4,0.2178398]
[1751250173797,10.44738378,2508.6,2508.4,0.2178398]
[1751250174185,5.32607705,2508.5,2508.4,0.2178398]
[1751250174492,15.32607705,2508.5,2508.4,0.2178398]
[1751250180498,12.13692019,2508.5,2508.4,0.2178398]
[1751250180707,10.0,2508.5,2508.4,0.2178398]
[1751250180904,13.18915686,2508.5,2508.4,0.2178398]
[1751250182084,20.21597901,2508.5,2508.4,0.2178398]
[1751250184720,28.31697901,2508.5,2508.4,0.2178398]
[1751250186621,29.06807901,2508.5,2508.4,0.2178398]
[1751250186787,32.4937251,2508.5,2508.4,0.2178398]
[1751250188014,26.41485754,2508.5,2508.4,0.2178398]
[1751250190388,25.66375754,2508.5,2508.4,0.2178398]
[1751250198243,26.42325754,2508.5,2508.4,0.2178398]
[1751250204447,28.16030075,2508.5,2508.4,0.2178398]
[1751250204656,3.19004705,2507.8,2507.7,0.001]
[1751250204813,11.28404705,2507.8,2507.7,0.001]
[1751250210633,10.0,2507.9,2507.7,0.001]
[1751250210845,8.095,2507.8,2507.7,0.001]
[1751250211363,11.28504705,2507.8,2507.7,0.001]
[1751250214241,8.095,2507.8,2507.7,0.001]
[1751250216970,11.28504705,2507.8,2507.7,0.001]
[1751250217570,13.7325461,2507.8,2507.7,0.001]
[1751250221987,10.54249905,2507.8,2507.7,0.001]
[1751250222183,8.095,2507.8,2507.7,0.001]
[1751250222387,11.28504705,2507.8,2507.7,0.001]
[1751250222766,8.095,2507.8,2507.7,0.001]
[1751250223370,13.19000263,2507.9,2507.7,0.001]
[1751250223773,8.095,2507.8,2507.7,0.001]
[1751250229372,9.26758333,2508.1,2507.7,0.001]
[1751250229373,1.18931448,2508.4,2507.8,3.98144775]
[1751250229695,1.18931448,2508.4,2507.9,3.9406072]
[1751250229696,6.444,2508.3,2507.9,3.9406072]
[1751250230001,6.444,2508.3,2508.0,3.18978605]
[1751250231192,3.18962084,2508.2,2507.7,3.96432516]
[1751250231394,6.444,2508.1,2507.7,3.96432516]
[1751250231601,9.63369059,2508.1,2507.7,0.7742]
[1751250232079,9.63374424,2508.1,2507.7,0.7742]
[1751250232276,1.651,2508.0,2507.7,0.7742]
[1751250232488,6.445,2507.9,2507.7,0.001]
[1751250232688,9.6349282,2507.9,2507.7,0.001]
[1751250233199,11.77264302,2507.9,2507.7,0.001]
[1751250233898,3.19004705,2507.8,2507.7,0.001]
[1751250234401,13.95814705,2507.8,2507.7,0.001]
[1751250242410,10.0,2507.8,2507.7,0.001]
[1751250242708,16.444,2507.8,2507.7,0.001]
[1751250243308,10.0,2507.8,2507.7,0.001]
[1751250243609,16.444,2507.8,2507.7,0.001]
[1751250244700,19.63404705,2507.8,2507.7,0.001]
[1751250244891,22.44839851,2507.8,2507.7,0.001]
[1751250246101,19.25835146,2507.8,2507.7,0.001]
[1751250246306,16.444,2507.8,2507.7,0.001]
[1751250250088,19.63404705,2507.8,2507.7,0.001]
[1751250251095,16.444,2507.8,2507.7,0.001]
[1751250251596,19.63404705,2507.8,2507.7,0.001]
[1751250252524,3.18975302,2508.1,2507.7,0.8262]
[1751250252700,6.444,2508.0,2507.7,0.8262]
[1751250256642,6.444,2508.0,2507.7,0.001]
[1751250256643,3.18997703,2507.9,2507.7,0.001]
[1751250256843,6.445,2507.8,2507.7,0.001]
[1751250257352,9.63504705,2507.8,2507.7,0.001]
[1751250257652,10.59855176,2507.8,2507.7,0.001]
[1751250259046,7.40850471,2507.8,2507.7,0.001]
[1751250259950,10.59855176,2507.8,2507.7,0.001]
[1751250260453,7.40850471,2507.8,2507.7,0.001]
[1751250260818,10.59855176,2507.8,2507.7,0.001]
[1751250268955,27.48861932,2507.8,2507.7,0.001]
[1751250269162,28.43789665,2507.8,2507.7,0.001]
[1751250274971,3.19080143,2507.3,2507.0,0.77531327]
[1751250275186,3.19059256,2507.4,2507.0,0.77531327]
[1751250275187,9.63481969,2507.2,2507.0,0.77531327]
[1751250275364,6.444,2507.2,2507.0,0.77531327]
[1751250277364,3.19115929,2507.0,2506.6,0.001]
[1751250277564,6.444,2506.9,2506.6,0.001]
[1751250278080,6.444,2506.9,2506.7,0.82]
[1751250278674,9.63520397,2506.9,2506.7,0.82]
[1751250278876,3.19131961,2506.8,2506.6,0.001]
[1751250279080,6.444,2506.7,2506.6,0.001]
[1751250279576,9.63544692,2506.7,2506.6,0.001]
[1751250281345,21.92489958,2506.7,2506.6,0.001]
[1751250281560,10.63845266,2506.7,2506.6,0.001]
[1751250281796,21.28644692,2506.7,2506.6,0.001]
[1751250282091,18.095,2506.7,2506.6,0.001]
[1751250282401,0.7811,2507.0,2506.6,0.001]
[1751250282603,18.099,2506.9,2506.6,0.001]
[1751250282767,1.651,2506.9,2506.6,0.001]
[1751250282970,6.448,2506.8,2506.6,0.001]
[1751250283499,3.19144692,2506.7,2506.6,0.001]
[1751250284696,9.63937499,2506.8,2506.6,0.001]
[1751250285399,1.651,2506.9,2506.6,0.001]
[1751250285400,6.449,2506.7,2506.6,0.001]
[1751250286399,13.19112187,2507.0,2506.6,0.001]
[1751250286578,6.449,2506.9,2506.6,0.001]
[1751250288504,6.449,2506.9,2506.7,0.8283]
[1751250289100,13.97198296,2507.2,2506.7,0.8283]
[1751250289301,10.0,2507.0,2506.7,4.01965119]
[1751250289604,10.0,2507.0,2506.7,0.8283]
[1751250290104,10.0,2507.0,2506.7,4.01974021]
[1751250290304,1.651,2507.2,2506.7,1.54963981]
[1751250290474,1.651,2507.2,2506.9,3.94507963]
[1751250290676,6.449,2507.1,2506.9,3.94507963]
[1751250291405,6.449,2507.1,2506.9,0.7539]
[1751250292106,0.002,2507.2,2506.9,0.7539]
[1751250292311,6.45,2507.0,2506.9,0.7539]
[1751250292510,6.45,2507.0,2506.9,1.46755218]
[1751250292808,6.45,2507.0,2506.9,4.65874448]
[1751250293102,0.002,2507.2,2507.0,0.7967]
[1751250293307,6.449,2507.1,2507.0,0.7967]
[1751250293811,6.449,2507.1,2506.8,0.7948]
[1751250295216,6.449,2507.1,2506.8,3.98610279]
[1751250295592,0.002,2507.2,2506.8,0.7948]
[1751250295817,0.002,2507.2,2507.1,3.19093773]
[1751250296012,0.002,2507.2,2507.1,0.39552377]
[1751250296013,6.453,2507.2,2507.1,0.39552377]
[1751250296329,6.453,2507.2,2507.0,0.7643]
[1751250297098,6.453,2507.2,2507.0,3.95536032]
[1751250297608,6.45091833,2507.2,2507.0,3.95536032]
[1751250298420,6.45091833,2507.2,2507.1,3.19093773]
[1751250299320,10.0,2507.5,2507.1,3.19093773]
[1751250299532,13.16035741,2507.6,2507.1,3.19093773]
[1751250299533,6.454,2507.4,2507.2,3.19075758]
[1751250299710,10.0,2507.6,2507.2,3.19075758]
[1751250299901,6.454,2507.5,2507.2,3.19075758]
[1751250300436,6.454,2507.5,2507.1,4.62856852]
[1751250300929,6.454,2507.5,2507.2,3.1908032]
[1751250301123,6.454,2507.5,2507.1,4.62858564]
[1751250301324,6.454,2507.5,2507.1,0.63820849]
[1751250301542,6.454,2507.5,2507.0,3.19101074]
[1751250301543,6.454,2507.5,2507.0,3.99051074]
[1751250301845,3.19056813,2507.4,2507.0,0.7995]
[1751250302447,9.64450046,2507.5,2507.0,3.99055597]
[1751250302939,9.64650046,2507.5,2507.0,3.99055597]
[1751250303751,3.19056008,2507.4,2507.0,3.99055597]
[1751250303926,3.19056008,2507.4,2507.0,0.7995]
[1751250304458,9.64650135,2507.5,2507.0,3.99055209]
[1751250304936,9.64650135,2507.5,2507.0,4.7087319]
[1751250305354,6.456,2507.5,2507.0,1.51767981]
[1751250305527,6.456,2507.5,2507.3,0.7792]
[1751250307872,0.002,2507.5,2507.3,3.96982179]
[1751250308062,6.452,2507.4,2507.3,3.96982179]
[1751250308374,6.452,2507.4,2507.3,0.7792]
[1751250309469,6.452,2507.4,2507.3,1.49528303]
[1751250309856,6.452,2507.4,2507.3,4.68596623]
[1751250311366,0.002,2507.5,2507.4,3.19055595]
[1751250311533,0.002,2507.5,2507.3,4.68596355]
[1751250311534,6.458,2507.5,2507.3,1.49528303]
[1751250312945,6.458,2507.5,2507.0,0.7688]
[1751250313150,6.458,2507.5,2507.1,3.19092461]
[1751250315051,6.458,2507.5,2507.2,3.19078407]
[1751250316468,6.458,2507.5,2507.1,3.19086577]
[1751250317172,6.458,2507.5,2507.0,3.95979483]
[1751250317356,6.458,2507.5,2507.1,3.58682202]
[1751250317552,6.454,2507.4,2507.3,3.19061363]
[1751250319365,6.454,2507.4,2507.3,3.1906832]
[1751250321385,6.454,2507.4,2507.2,0.7771]
[1751250321386,6.454,2507.4,2507.2,3.96784261]
[1751250321693,6.454,2507.4,2507.2,4.72331621]
[1751250322885,6.454,2507.4,2507.2,1.5325736]
[1751250323069,6.454,2507.4,2507.1,3.1908923]
[1751250326289,6.454,2507.4,2507.0,3.99975799]
[1751250326290,6.454,2507.4,2507.0,3.99975769]
[1751250326694,6.454,2507.4,2507.0,4.00075769]
[1751250328693,6.454,2507.4,2507.1,3.19093255]
[1751250328990,0.002,2507.5,2507.1,3.91007518]
[1751250329159,6.452,2507.5,2507.2,0.8289]
[1751250329364,10.43490223,2507.5,2507.0,0.8299]
[1751250329559,3.19055595,2507.4,2507.0,0.001]
[1751250329760,3.19087662,2507.2,2507.0,0.001]
[1751250329965,9.66093773,2507.1,2507.0,0.001]
[1751250330464,11.80217592,2507.1,2507.0,0.001]
[1751250330762,11.80217592,2507.1,2506.6,0.7328]